Cogmind - Beta 14 @@@ ROGUE MODE // 2025.03.31 @ 23:05:22 Player: IA-Sg3M Result: Destroyed by S-10 Pest with Light Assault Rifle Performance ------------- Evolutions (0) 0 Regions Visited (2) 400 Robots Destroyed (21) 105 Value Destroyed (444) 444 Prototype IDs (0) 0 Alien Tech Used (0) 0 Bonus (0) 0 TOTAL SCORE: 949 Bonus ------- None Cogmind --------- Core Integrity 0/250 Matter 270/300 Energy 250/250 System Corruption 5% Temperature Cool (0) Movement Rolling (105) Ox1 Location -10/Mines Parts ------- > --- POWER (1) -------- Ion Engine > --- PROPULSION (2) --- Wheel Compact Wheel > --- UTILITY (2) ------ High-capacity Storage Unit Targeting Computer > --- WEAPON (2) ------- Grenade Launcher > --- INVENTORY (20) --- Aluminum Leg Structural Scanner Seismic Detector Hacking Suite Beam Cannon Grenade Launcher Peak State ------------ > --- POWER ------------ Ion Engine > --- PROPULSION ------- Aluminum Leg Aluminum Leg > --- UTILITY ---------- Seismic Detector Targeting Computer > --- WEAPON ----------- Beam Cannon > --- INVENTORY -------- Structural Scanner Seismic Detector Light Armor Plating Grenade Launcher Grenade Launcher [Rating: 6] Favorites ----------- Power Ion Engine Engine Ion Engine Propulsion Wheel Leg Aluminum Leg Wheel Wheel Hover Unit Hover Unit Utility Targeting Computer Device Seismic Detector Storage High-capacity Storage Unit Processor Targeting Computer Protection Light Armor Plating Weapon Beam Cannon Energy Gun Particle Gun Energy Cannon Beam Cannon Launcher Grenade Launcher Build | -11 -10 -10 ------- Run | Yrd Mat Min Slots Evolved . | . . . Power . | . . . Propulsion . | . . . Utility . | . . . Weapon . | . . . Parts Attached 21 | 2 18 1 Power 3 | . 3 . Engine 3 | . 3 . Core . | . . . Reactor . | . . . Propulsion 6 | . 6 . Treads . | . . . Leg 2 | . 2 . Wheel 3 | . 3 . Hover 1 | . 1 . Flight . | . . . Utility 6 | 1 5 . Device 2 | 1 1 . Storage 1 | . 1 . Processor 1 | . 1 . Hackware . | . . . Protection 2 | . 2 . Artifact . | . . . Weapon 6 | 1 4 1 Energy Gun 3 | 1 2 . Energy Cannon 1 | . 1 . Ballistic Gun . | . . . Ballistic Cannon . | . . . Launcher 2 | . 1 1 Special Weapon . | . . . Impact Weapon . | . . . Slashing Weapon . | . . . Piercing Weapon . | . . . Special Melee Weapon . | . . . Unidentified Prototypes . | . . . Corrupted Parts 1 | . 1 . System Corruption 4 | . 4 . Parts Lost 5 | . 5 . Power 1 | . 1 . Propulsion 2 | . 2 . Utility . | . . . Weapon 2 | . 2 . Highest Loss Streak 2 | . 2 . To Critical Strikes . | . . . Average Slot Usage (%) 59 | . 58 85 Engine 11 | . 11 14 Leg 3 | . 3 . Wheel 4 | . 3 28 Hover 1 | . 1 . Device 11 | . 11 . Storage 1 | . 1 14 Processor 11 | . 11 14 Protection 1 | . 1 . Energy Gun 6 | . 7 . Energy Cannon 5 | . 4 11 Peak Build Rating 6 | 2 6 6 Average Rating 4 | . 4 6 On Entrance 2 | . 2 6 Naked Turns . | . . . Heaviest Build 48 | 3 48 48 Greatest Support 26 | 3 26 26 Greatest Overweight (x) 4 | . 4 1 Average Overweight (x) . | . . 1 Largest Inventory Capacity 20 | 5 20 20 Average Capacity 6 | 5 6 20 Most Carried 7 | . 7 6 Average Carried 4 | . 4 6 Final Capacity 20 | 5 20 20 Final Carried 6 | . 6 6 Class Distribution -------------------- 100% | Mutant Dominant Class ---------------- Mutant | -10/Materials Mutant | -10/Mines Resources | -11 -10 -10 ----------- Run | Yrd Mat Min Matter Collected 442 | 220 192 30 Remotely . | . . . Salvage Created 654 | 15 549 90 Parts 41 | 4 28 9 Haulers Intercepted 2 | . 2 . Recyclers Shooed . | . . . Parts Field Recycled . | . . . Retrieved Matter . | . . . Parts Self-Destructed . | . . . Prevented . | . . . Kills | -11 -10 -10 ------- Run | Yrd Mat Min Combat Hostiles Destroyed 13 | . 9 4 Guns 5 | . 5 . Cannons 4 | . 2 2 AOE 3 | . 1 2 Classes Destroyed 8 | 1 7 . Worker 1 | . 1 . Tunneler 1 | 1 . . Hauler 2 | . 2 . Recycler 1 | . 1 . Operator 1 | . 1 . Watcher 2 | . 2 . Swarmer 5 | . 3 2 Grunt 8 | . 6 2 Best Kill Streak 3 | 1 3 2 Combat Bots Only 3 | . 3 2 Max Kills in Single Turn 2 | 1 2 1 Gunslinging . | . . . Exploded 1 | . 1 1 Melee . | . . . Uniques/NPCs Destroyed . | . . . Combat | -11 -10 -10 -------- Run | Yrd Mat Min Hostile Shots Fired 80 | . 58 22 Missed 21 | . 16 5 Damage Taken 717 | . 496 221 Core 253 | . 174 79 Absorbed by Shields . | . . . Regen/Repaired (Parts) 21 | . 21 . Core Remaining (%) 100 | 100 . . Volleys Fired 90 | 2 77 11 Largest 1 | 1 1 1 Hottest 65 | 40 65 60 Shots Fired 91 | 2 78 11 Gun 57 | 2 55 . Cannon 30 | . 21 9 Launcher 4 | . 2 2 Special . | . . . Kinetic . | . . . Thermal 70 | . 61 9 Explosive 4 | . 2 2 Electromagnetic 17 | 2 15 . Robot Hit Streak 7 | 1 7 4 Robot Miss Streak 4 | 1 4 1 Penetration Max . | . . . Secondary Targets . | . . . Shots Hit Robots 55 | 1 47 7 Core Hits 25 | 1 19 5 Critical Kills 1 | . 1 . Critical Parts Destroyed . | . . . Critical Strikes 2 | . 2 . Meltdown 1 | . 1 . Corrupt 1 | . 1 . Melee Attacks . | . . . Impact . | . . . Slashing . | . . . Piercing . | . . . Sneak Attacks . | . . . Combat Hostiles . | . . . Follow-up Attacks . | . . . Damage Inflicted 1030 | 13 802 215 Guns 547 | 13 534 . Cannons 299 | . 195 104 Explosions 184 | . 73 111 Melee . | . . . Ramming . | . . . Kinetic . | . . . Thermal 669 | . 565 104 Explosive 184 | . 73 111 Electromagnetic 177 | 13 164 . Impact . | . . . Slashing . | . . . Piercing . | . . . Highest Corruption 5 | . 5 5 Average Corruption 4 | . 4 5 Corruption Purged . | . . . Corruption Blocked . | . . . Effects 29 | . 27 2 Message Errors 6 | . 5 1 Matter Fused 6 | . 6 . Heat Flow Errors 5 | . 5 . Energy Discharges 3 | . 3 . Parts Rejected 1 | . 1 . Parts Fused 1 | . 1 . Data Loss (minor) 6 | . 5 1 Misfires 1 | . 1 . Overload Shots . | . . . Overflow Damage 6 | . 6 . Projectiles 6 | . 6 . Explosions . | . . . Melee . | . . . Knockbacks . | . . . Impact . | . . . Kinetic . | . . . Secondary . | . . . Self-Inflicted Damage 37 | . . 37 Shots 1 | . . 1 Rammed . | . . . Targets Rammed . | . . . Kicked . | . . . Crushed . | . . . Highest Temperature 267 | . 244 267 Average Temperature 71 | . 62 139 Received Heat Transfer 339 | . 252 87 Effects 1 | . 1 . Interference 1 | . 1 . Siege Activations . | . . . Robots Corrupted . | . . . Combat Hostiles . | . . . Parts Fried 2 | . 2 . Impact Corruptions . | . . . Robots Melted 1 | . 1 . Combat Hostiles 1 | . 1 . Parts Melted 2 | . 2 . Heat Transferred 1591 | . 1369 222 Parts Sabotaged . | . . . Parts Stolen . | . . . Parts Stripped . | . . . Power Chain Reactions . | . . . Alert | -11 -10 -10 ------- Run | Yrd Mat Min Peak Influence 227 | 5 196 227 Initial 66 | . 3 66 Average 106 | 1 110 112 Maximum Alert Level 1 | . . 1 Low Security (%) 99 | 100 100 98 Level 1 . | . . 1 Level 2 . | . . . Level 3 . | . . . Level 4 . | . . . Level 5 . | . . . High Security . | . . . Max Security . | . . . Squads Dispatched 3 | . 3 . Investigation 2 | . 2 . Extermination . | . . . Reinforcement 1 | . 1 . Assault . | . . . Garrison . | . . . Intercept . | . . . Searches Triggered . | . . . Construction Impeded . | . . . Haulers Reinforced . | . . . Active Scanning Responses . | . . . Cargo Convoy Interrupts . | . . . Stealth | -11 -10 -10 --------- Run | Yrd Mat Min Distress Signals 1 | . 1 . Communications Jammed . | . . . Distress Signals . | . . . Times Spotted 27 | . 22 5 Peak Tracking Total 4 | . 4 3 Tactical Retreats 4 | . 4 . Traps | -11 -10 -10 ------- Run | Yrd Mat Min Traps Triggered 1 | . 1 . Indirectly . | . . . Trap Hack Attempts . | . . . Triggered . | . . . Disarmed . | . . . Reprogrammed . | . . . Reused . | . . . Traps Extracted . | . . . Installed . | . . . Triggered . | . . . Machines | -11 -10 -10 ---------- Run | Yrd Mat Min Machines Disabled 3 | . 1 2 Max in Single Turn 1 | . 1 1 Machines Repaired . | . . . Machines Dismantled . | . . . Machines Sabotaged . | . . . Overloaded Fab Kills . | . . . Hacking | -11 -10 -10 --------- Run | Yrd Mat Min Machines Accessed 6 | . 6 . Terminals 4 | . 4 . Fabricators . | . . . Repair Stations 1 | . 1 . Recycling Units 1 | . 1 . Scanalyzers . | . . . Garrison Access . | . . . Total Hacks 18 | . 18 . Successful 9 | . 9 . Failed 9 | . 9 . Catastrophic 1 | . 1 . Database Lockouts . | . . . Manual 8 | . 8 . Terminals 13 | . 13 . Fabricators . | . . . Repair Stations 3 | . 3 . Recycling Units 2 | . 2 . Scanalyzers . | . . . Garrison Access . | . . . Terminal Hacks 2 | . 2 . Robot Analysis 1 | . 1 . Zone Layout 1 | . 1 . Fabricator Hacks . | . . . Repair Station Hacks 3 | . 3 . Scan Component 1 | . 1 . Repair 1 | . 1 . Refit 1 | . 1 . Recycling Unit Hacks 1 | . 1 . Report Inventory 1 | . 1 . Scanalyzer . | . . . Garrison Access Hacks . | . . . Unauthorized Hacks 3 | . 3 . Terminals 2 | . 2 . Botnet 1 | . 1 . Operators 1 | . 1 . Fabricators . | . . . Repair Stations . | . . . Recycling Units 1 | . 1 . Tunnel 1 | . 1 . Scanalyzers . | . . . Garrison Access . | . . . Data Cores Recovered . | . . . Used . | . . . Hacking Detections 5 | . 5 . Full Trace Events 2 | . 2 . Feedback Events 1 | . 1 . Corruption 1 | . 1 . Feedback Blocked . | . . . Robot Schematics Acquired . | . . . Robots Built . | . . . Authchips . | . . . Time . | . . . Total Robot Build Rating . | . . . Part Schematics Acquired . | . . . Parts Built . | . . . Authchips . | . . . Time . | . . . Total Part Build Rating . | . . . Parts Repaired 1 | . 1 . Time 26 | . 26 . Parts Recycled . | . . . Recycled Matter . | . . . Retrieved Matter . | . . . Retrieved Components . | . . . Parts Scanalyzed . | . . . Part Schematics Acquired . | . . . Parts Damaged . | . . . Bothacking | -11 -10 -10 ------------ Run | Yrd Mat Min Used RIF Installer . | . . . Robots Hacked . | . . . Non-combat . | . . . Combat . | . . . Robot Hacks Applied . | . . . Relay Couplers Released . | . . . Fabnet Peak Effective % . | . . . Robots Rewired . | . . . Allies Hacked . | . . . Hacks Repelled . | . . . Allies | -11 -10 -10 -------- Run | Yrd Mat Min Total Allies . | . . . Largest Group . | . . . Highest-Rated Group . | . . . Highest-Rated Ally . | . . . Total Orders . | . . . Ally Attacks . | . . . Total Damage . | . . . Kills . | . . . Allies Corrupted . | . . . Allies Melted . | . . . Intel | -11 -10 -10 ------- Run | Yrd Mat Min Robot Analysis Total 1 | . 1 . Derelict Logs Recovered . | . . . Drone Launches . | . . . Drone Recoveries . | . . . Exploration | -11 -10 -10 ------------- Run | Yrd Mat Min Turns Passed 1203 | 44 1096 63 Spaces Moved 886 | 75 780 31 Core 655 | 75 580 . Treads . | . . . Legs 44 | . 44 . Wheels 187 | . 156 31 Hover . | . . . Flight . | . . . Fastest Speed 50 | 50 50 105 Average Speed 90 | 50 94 105 Slowest Speed 150 | 50 150 105 Overloaded Moves . | . . . Propulsion Burnouts . | . . . Robots Hopped . | . . . Cave-ins Triggered . | . . . Exploration Rate (%) 32 | 4 85 9 Regions Visited 2 Branch Regions 1 Pre-discovered Areas 1 | . 1 . Known Exits Taken . | . . . Unknown Exits Taken 2 | 1 1 . Scrap Searched . | . . . Spaces Dug . | . . . Terrain Destroyed 31 | . 15 16 Melee . | . . . Projectile . | . . . AOE 31 | . 15 16 Terrain Rammed . | . . . Walls Destroyed . | . . . Machines Disabled . | . . . Actions | -11 -10 -10 --------- Run | Yrd Mat Min Total 1193 | 78 1065 50 Wait 173 | . 166 7 Move 884 | 74 779 31 Hop . | . . . Pick Up 9 | . 9 . Fast Attach 15 | 2 13 . Attach 4 | . 4 . Detach 7 | . 7 . Swap 2 | . 1 1 Drop 9 | . 9 . Fire 90 | 2 77 11 Melee . | . . . Ram . | . . . Kick . | . . . Crush . | . . . Escape Stasis . | . . . Rewire . | . . . Trap . | . . . Miscellaneous . | . . . Route ------- -11/Scrapyard -10/Materials (discovered 5 exits: [*Mat x3] / [*Min] / [*Sub]) -10/Mines History --------- Turn | Location | Event 7 | -11/Scrapyard | Discovered new exit (range 15) 45 | -11/Scrapyard | Entered Materials 127 | -10/Materials | Discovered new exit (range 8) 166 | -10/Materials | Discovered new exit (range 5) 311 | -10/Materials | Build established: Mutant 372 | -10/Materials | Discovered new exit (range 16) 609 | -10/Materials | Core integrity fell below 50% 850 | -10/Materials | Discovered new exit (range 10) 1025 | -10/Materials | Discovered new exit (range 16) 1125 | -10/Materials | Repaired Com. Wheel 1141 | -10/Materials | Entered Mines 1163 | -10/Mines | Core integrity fell below 20% 1204 | -10/Mines | Destroyed by S-10 Pest with Light Assault Rifle Last Messages --------------- Com. Wheel Rating: 1 Time: 26 >>Repair Repairing Com. Wheel... ETC: 26 01125_ Repair station completes Com. Wheel repairs. 01125_ Acquired Com. Wheel. 01128_ SCL2HGF6SCFILGJ=5&BS#YRADT6F6CB LOCATION=UNKNOWN GOAL=ESCAPE 01157_ Laser Drill disabled. 01159_ Critical hit (Burn: +37). 01163_ G-47 Trooper destroyed. 01169_ G-34 Mercenary destroyed. 01171_ Acquired 30 matter. 01185_ /VBAXBUIQ0FYVR1 01201_ S-10 Pest destroyed. 01203_ Laser Drill disabled. 01204_ System corrupted: Component data lost. Map ----- +----------------------------------------------------+ | | | | | | | | | | | | | | | | | | | | | | | | | | | | | | | | | | | | | ?????????????????????????????????????????????????? | | ?????????????????????????????????????????????????? | | ?????????????????????????????????????#???????????? | | ?????????????????????????????????## #???????????? | | ??????????????????????????????? #???????????? | | ???????????????????????###### #???????????? | | ??????????????????????## s[ #???????????? | | ????########??????????# @ % % #???????????? | | ????# #??????????# " * #???????????? | | ????# #??????????## ####""" #???????????? | | ????# #????????#### #?????" #???????????? | | ????# #????????# #???????????????????????? | | ????# """ ########## ####???????????????????????? | | ????# """ #??????????????????????????? | | ????#!="[= ######## ###??????????????????????????? | | ????#*%=%! #??????# #????????????????????????????? | | ????########??????# #????????????????????????????? | | ??????????????????# #????????????????????????????? | | ??????????????????# #????????????????????????????? | | ??????????????????# #????????????????????????????? | | ??????????????????# #????????????????????????????? | | ??????????????????# #????????????????????????????? | | ??????????????????# #????????????????????????????? | | ??????????????????? ?????????????????????????????? | | ??????????????????? ?????????????????????????????? | | ??????????????????? ?????????????????????????????? | | ??????????????????? ?????????????????????????????? | | ???????????????????#?????????????????????????????? | | ?????????????????????????????????????????????????? | | ?????????????????????????????????????????????????? | | ?????????????????????????????????????????????????? | | ?????????????????????????????????????????????????? | +----------------------------------------------------+ Best States ------------- Heat Dissipation 25 Energy Generation 10 Energy Capacity 250 Matter Stores 300 Matter Capacity 300 Sight Range 16 Terrain Scan Density 10 Armor Coverage 150 Evasion (%) 55 Targeting Accuracy 5 Item Schematics ----------------- None Robot Schematics ------------------ None Fabricated ------------ Nothing Alien Tech Used ----------------- None Achievements -------------- None Challenges ------------ None Game ------ Seed SpliceGuidanceMonowheel Manual? 0 Play Time 00:10:43 Cumulative 154.8 hours Start 2025.03.31 @ 22:52:46 End 2025.03.31 @ 23:05:22 Sessions 1 Manual Loads 0 Difficulty Rogue Special Mode None Game No. 169 Rogue 169 Adventurer 0 Explorer 0 Win Type - Total 2 Types 2/0/0/0/0/0/0/0/0 Lore% 57 Gallery% 68 Achievement% 59 Wizard Run 0 Options --------- Layout 0 ASCII 0 Keyboard 1 Movement Numpad Keybinds 0 Fullscreen 2 Font 18/Smallcaps Map View 76x50 Zoom Use 0% Tactical HUD 1 Map Filters NONE Filters NONE Steam 1 RUN: b1f98494-4385-4f37-af64-b4ae0f0c7054